bitfinex-derivatives/quotes_ETHF0:USTF0_20240924
["timestamp","ask_amount","ask_price","bid_price","bid_amount"]
[1727194004821,3.58953,2619.8,2619.6,2.39]
[1727194005323,0.38174,2619.7,2619.4,2.77178]
[1727194005710,0.38177,2619.5,2619.4,2.39]
[1727194010729,0.38178,2619.4,2619.3,0.9874]
[1727194011031,0.38178,2619.4,2619.3,0.4891]
[1727194011220,0.5194,2619.5,2619.0,4.10043]
[1727194011523,1.47384,2619.5,2619.0,4.2057]
[1727194011721,0.38182,2619.1,2619.0,0.9979]
[1727194013123,0.95455,2619.2,2618.8,2.39]
[1727194013320,0.38185,2619.0,2618.8,4.00986]
[1727194013520,0.38185,2619.0,2618.8,2.77186]
[1727194014629,0.95455,2619.2,2618.8,2.39]
[1727194014630,0.38185,2618.9,2618.8,2.39]
[1727194014931,0.38185,2619.0,2618.8,2.77187]
[1727194017126,0.38185,2618.9,2618.8,2.77187]
[1727194018118,0.95453,2619.2,2618.7,0.4871]
[1727194018119,1.33655,2618.8,2618.7,0.4871]
[1727194018319,0.38188,2618.7,2618.6,3.628]
[1727194018527,0.38188,2618.7,2618.6,2.39]
[1727194019937,0.38188,2618.7,2618.6,2.7719]
[1727194020238,0.5073,2618.9,2618.6,2.39]
[1727194020437,0.38188,2618.7,2618.6,2.39]
[1727194021337,0.38188,2618.8,2618.6,2.7719]
[1727194021537,0.38188,2618.7,2618.6,2.7719]
[1727194022332,0.38188,2618.7,2618.6,2.39]
[1727194022528,0.95471,2618.7,2618.4,0.4844]
[1727194022725,0.38191,2618.5,2618.4,0.4844]
[1727194023232,0.38191,2618.5,2617.9,3.2078]
[1727194023233,0.38199,2618.0,2617.9,3.2078]
[1727194023432,0.95496,2618.1,2617.9,3.2078]
[1727194023433,0.38198,2618.1,2617.9,4.0758]
[1727194023635,0.38199,2618.0,2617.9,3.6938]
[1727194023836,0.38198,2618.1,2618.0,0.38199]
[1727194024137,0.38198,2618.1,2618.0,2.39]
[1727194024937,0.4692,2618.4,2618.0,2.39]
[1727194025136,0.38192,2618.5,2618.3,0.38194]
[1727194025332,4.1908,2618.9,2618.4,2.39]
[1727194025530,0.38185,2619.0,2618.8,0.38187]
[1727194025731,0.38186,2618.9,2618.7,2.77188]
[1727194026428,0.38187,2618.8,2618.7,2.39]
[1727194027341,0.38189,2618.7,2618.5,3.2417]
[1727194027843,0.38188,2618.7,2618.5,3.24171]
[1727194029331,0.38188,2618.8,2618.6,0.38189]
[1727194029838,0.38188,2618.7,2618.5,3.2417]
[1727194030240,0.38188,2618.8,2618.6,0.3819]
[1727194030439,0.38188,2618.7,2618.5,3.2417]
[1727194030840,0.38187,2618.8,2618.6,0.38189]
[1727194031538,0.38188,2618.7,2618.5,3.2417]
[1727194032243,1.44321,2619.0,2618.6,0.38189]
[1727194032444,0.38188,2618.7,2618.5,3.24171]
[1727194033644,3.2078,2618.9,2618.6,0.3819]
[1727194033838,0.38188,2618.7,2618.6,0.3819]
[1727194034544,3.2078,2618.9,2618.6,0.3819]
[1727194034733,0.38188,2618.7,2618.6,0.3819]
[1727194036434,4.16246,2618.9,2618.5,3.2417]
[1727194036638,0.3819,2618.6,2618.5,3.2417]
[1727194037444,0.3819,2618.6,2618.5,2.8598]
[1727194037744,1.3367,2618.5,2618.4,0.486]
[1727194038045,0.38193,2618.4,2618.3,0.38194]
[1727194038239,0.38193,2618.4,2618.3,0.87354]
[1727194038739,0.38192,2618.5,2618.4,0.38193]
[1727194038938,0.95474,2618.7,2618.4,2.77193]
[1727194039146,0.38191,2618.6,2618.5,0.38191]
[1727194039347,0.9541,2618.8,2618.5,0.38191]
[1727194039548,0.9541,2618.8,2618.4,2.39]
[1727194039549,0.9541,2618.8,2618.6,0.3819]
[1727194039744,1.33598,2618.8,2618.6,0.3819]
[1727194039947,0.87498,2618.8,2618.7,0.4916]
[1727194040152,0.38188,2618.8,2618.7,0.9746]
[1727194040538,0.38188,2618.8,2618.7,1.35648]
[1727194040739,0.38187,2618.8,2618.7,1.35648]
[1727194041343,0.38187,2618.8,2618.7,0.9746]
[1727194041742,0.3819,2618.6,2618.4,2.873]
[1727194041943,0.3819,2618.6,2618.5,0.3819]
[1727194042140,0.3819,2618.6,2618.5,0.38191]
[1727194042544,0.3819,2618.6,2618.4,3.72052]
[1727194042845,0.38191,2618.5,2618.4,0.4656]
[1727194043046,0.38194,2618.3,2618.2,0.85215]
[1727194043241,0.38194,2618.3,2618.2,0.38195]
[1727194043442,0.38194,2618.3,2618.1,2.53476]
[1727194043949,0.38194,2618.3,2618.2,0.38196]
[1727194044344,0.38195,2618.3,2618.1,2.1528]
[1727194044541,0.38194,2618.4,2618.1,2.1528]
[1727194044737,0.38194,2618.4,2618.2,2.39]
[1727194045038,0.87222,2618.5,2618.4,0.38193]
[1727194045352,0.38192,2618.5,2618.4,0.38193]
[1727194045548,0.38193,2618.4,2618.3,2.77193]
[1727194046557,0.38192,2618.5,2618.3,2.77193]
[1727194046852,0.38193,2618.4,2618.3,2.77193]
[1727194047550,0.38193,2618.4,2618.3,2.77194]
[1727194049147,0.38195,2618.3,2618.1,7.7506]
[1727194049454,0.38195,2618.3,2618.2,0.38195]
[1727194049646,0.38194,2618.4,2618.3,0.38194]
[1727194049847,1.42384,2618.7,2618.2,0.38195]
[1727194049848,0.38194,2618.3,2618.2,0.38195]
[1727194050051,0.38194,2618.4,2618.3,0.38194]
[1727194050246,0.95476,2618.6,2618.4,0.38192]
[1727194050247,0.38192,2618.5,2618.4,0.38192]
[1727194050455,0.38193,2618.4,2618.1,7.7506]
[1727194050655,0.38193,2618.4,2618.3,0.38194]
[1727194052560,0.38192,2618.5,2618.4,0.38192]
[1727194053258,0.38193,2618.4,2618.3,2.77193]
[1727194055962,0.38192,2618.5,2618.4,0.38192]
[1727194057357,0.38192,2618.5,2618.3,2.39]
[1727194057560,0.38193,2618.4,2618.3,2.77193]
[1727194058463,0.38193,2618.4,2618.3,0.38193]
[1727194058659,0.38195,2618.3,2618.2,0.38196]
[1727194058855,0.38194,2618.4,2618.3,0.38194]
[1727194059252,4.77403,2618.4,2618.1,4.20346364]
[1727194059455,0.38193,2618.4,2618.3,0.38193]
[1727194059853,3.676,2618.6,2618.2,2.39]
[1727194060161,0.4698,2618.9,2618.8,0.38187]
[1727194060371,3.2078,2619.0,2618.9,0.38185]
[1727194060659,3.58965,2619.0,2618.9,0.38185]
[1727194061756,3.58964,2619.0,2618.9,0.38185]
[1727194061958,3.2078,2619.0,2618.9,0.38185]
[1727194063156,3.2078,2619.5,2618.9,4.77304]
[1727194063361,0.38177,2619.5,2619.4,2.39]
[1727194063669,0.3818,2619.3,2619.2,2.39]
[1727194063963,0.38181,2619.2,2619.1,0.4667]
[1727194064164,0.38185,2618.9,2618.8,0.4628]
[1727194064353,0.38187,2618.8,2618.7,3.6745]
[1727194066259,0.38188,2618.7,2618.6,0.089]
[1727194066459,0.86108,2618.7,2618.6,0.089]
[1727194066971,1.81579,2618.7,2618.6,0.089]
[1727194067166,6.5889,2618.7,2618.6,0.089]
[1727194067672,13.0595,2618.7,2618.6,0.089]
[1727194068263,1.33675,2618.4,2618.3,0.873]
[1727194068463,3.72675,2618.4,2618.3,0.873]
[1727194068763,7.54595,2618.4,2618.3,0.873]
[1727194068963,5.15595,2618.4,2618.3,0.873]
[1727194070758,6.11077,2618.4,2618.3,0.873]
[1727194070959,8.50077,2618.4,2618.3,0.873]
[1727194071162,14.50077,2618.4,2618.3,0.873]
[1727194071468,0.38203,2617.7,2617.6,0.4748]
[1727194071655,0.38206,2617.5,2617.4,3.85846364]
[1727194071863,0.38205,2617.6,2617.4,2.44784802]
[1727194072059,0.38205,2617.6,2617.4,0.85487]
[1727194072869,0.38204,2617.7,2617.4,0.85487]
[1727194073469,0.38204,2617.7,2617.4,0.4728]
[1727194073771,0.38204,2617.7,2617.4,0.85486]
[1727194075674,0.38205,2617.6,2617.4,0.85486]
[1727194076965,0.38206,2617.5,2617.4,0.4728]
[1727194078570,0.38205,2617.6,2617.4,0.4728]
[1727194078769,0.38206,2617.5,2617.4,0.4728]
[1727194079581,0.38205,2617.6,2617.4,0.4728]
[1727194079972,0.38206,2617.5,2617.4,0.4728]
[1727194080767,0.9715,2617.8,2617.3,2.8854]
[1727194080973,0.38205,2617.6,2617.3,3.3771]
[1727194081176,0.9715,2617.8,2617.5,2.39]
[1727194081177,0.85472,2617.8,2617.5,2.39]
[1727194081376,0.38203,2617.7,2617.6,0.4987]
[1727194081582,0.38207,2617.4,2617.3,0.4954]
[1727194081764,0.38214,2617.0,2616.8,0.38216]
[1727194081971,0.95526,2617.2,2616.8,0.38216]
[1727194082173,0.38214,2617.0,2616.8,0.38216]
[1727194082466,0.38216,2616.8,2616.7,1.4472]
[1727194082673,0.38215,2616.9,2616.7,1.82937]
[1727194082981,0.85533,2617.1,2616.9,0.38215]
[1727194083179,0.38212,2617.1,2616.9,0.38214]
[1727194083679,0.38214,2617.0,2616.8,0.38216]
[1727194083868,0.931,2617.3,2616.7,3.8372]
[1727194084069,0.38214,2617.0,2616.8,0.38216]
[1727194084964,0.931,2617.3,2616.7,3.8372]
[1727194085166,0.931,2617.3,2616.7,1.4472]
[1727194085167,0.9553,2617.1,2616.7,1.4472]
[1727194085375,0.9553,2617.1,2616.7,0.4758]
[1727194085376,0.38216,2616.8,2616.7,0.4758]
[1727194087881,0.38217,2616.7,2616.5,0.3822]
[1727194088072,0.38219,2616.6,2616.5,0.3822]
[1727194088781,0.38218,2616.7,2616.6,0.38218]
[1727194089175,0.38218,2616.7,2616.5,0.3822]
[1727194089384,0.38219,2616.6,2616.5,0.3822]
[1727194089681,0.3822,2616.5,2616.4,0.83761]
[1727194089877,0.3822,2616.5,2616.4,0.4554]
[1727194090078,0.95561,2616.3,2616.0,0.38228]
[1727194090390,0.95561,2616.3,2615.9,4.4428]
[1727194090391,0.84055,2616.2,2615.9,4.1437]
[1727194090579,0.84056,2616.2,2616.1,0.38226]
[1727194090775,0.4583,2616.2,2616.1,0.38226]
[1727194090975,0.38225,2616.2,2616.1,0.38226]
[1727194091181,0.38224,2616.3,2616.2,0.38225]
[1727194091380,0.38225,2616.2,2616.1,0.38225]
[1727194091586,0.38227,2616.1,2616.0,0.38227]
[1727194091982,0.38225,2616.2,2616.1,0.38226]
[1727194092387,0.9961,2616.4,2615.9,4.1437]
[1727194092686,0.38226,2616.2,2616.1,0.38226]
[1727194093390,0.95559,2616.3,2615.9,4.1437]
[1727194093589,0.38228,2616.0,2615.9,4.52598]
[1727194093781,0.38228,2616.0,2615.9,4.1437]
[1727194094483,0.38231,2615.8,2615.6,0.38233]
[1727194094680,0.38231,2615.8,2615.5,0.38234]
[1727194094681,0.38233,2615.7,2615.5,0.38234]
[1727194095181,1.4007,2615.9,2615.6,0.38233]
[1727194095380,1.4007,2615.9,2615.5,2.39]
[1727194095381,0.38233,2615.7,2615.5,2.39]
[1727194095580,0.38233,2615.7,2615.5,0.38234]
[1727194095890,0.38231,2615.8,2615.4,1.4202]
[1727194096090,0.38231,2615.8,2615.6,0.38233]
[1727194096495,0.38232,2615.7,2615.5,0.38234]
[1727194096794,0.38234,2615.6,2615.5,0.38235]
[1727194096985,0.38235,2615.5,2615.4,0.9548]
[1727194097181,0.38235,2615.5,2615.4,0.4915]
[1727194097377,0.38237,2615.4,2615.2,3.59018]
[1727194097578,2.39,2615.6,2615.2,3.2078]
[1727194097579,3.34587,2615.6,2615.2,3.2078]
[1727194097786,0.38238,2615.3,2615.2,3.2078]
[1727194098184,0.38241,2615.2,2615.0,0.38241]
[1727194098390,0.38241,2615.2,2614.6,16.3918]
[1727194098391,0.38243,2615.0,2614.8,0.87904]
[1727194098586,0.9283,2615.2,2614.8,0.87904]
[1727194098889,0.9283,2615.2,2614.8,0.4966]
[1727194098890,1.3107,2615.2,2614.8,0.4966]
[1727194099091,0.38241,2615.1,2615.0,0.38242]
[1727194099391,0.8576,2615.2,2615.0,0.38242]
[1727194099690,0.38241,2615.1,2614.9,0.38243]
[1727194100084,0.4752,2615.2,2615.0,0.38242]
[1727194100278,0.38241,2615.1,2615.0,0.38242]
[1727194100680,0.38242,2615.0,2614.9,0.38243]
[1727194101098,4.20642,2615.0,2614.9,0.38243]
[1727194101287,0.9287,2615.1,2614.9,0.38243]
[1727194101288,1.31112,2615.1,2614.9,0.38243]
[1727194101495,0.84922,2615.1,2614.7,0.9494]
[1727194101697,0.8576,2615.2,2614.7,3.3394]
[1727194101993,0.38241,2615.1,2614.7,3.3394]
[1727194102497,0.38241,2615.1,2614.9,0.38243]
[1727194102789,2.39,2615.0,2614.0,4.16421]
[1727194102987,0.38248,2614.7,2614.5,0.38249]
[1727194103185,0.38248,2614.7,2614.6,0.38248]
[1727194103790,2.77246,2614.8,2614.3,3.2078]
[1727194103987,2.77246,2614.8,2614.6,0.38248]
[1727194104194,0.38247,2614.7,2614.5,0.38249]
[1727194104381,0.38249,2614.6,2614.4,0.3825]
[1727194104584,2.39,2614.6,2614.3,3.59032]
[1727194104798,0.3825,2614.5,2614.3,3.59032]
[1727194104999,0.38251,2614.4,2614.3,3.2078]
[1727194105387,0.38251,2614.4,2614.2,0.9407]
[1727194105691,0.38253,2614.3,2614.2,0.4732]
[1727194106102,0.9589,2614.5,2614.3,0.38253]
[1727194106403,0.9589,2614.5,2614.2,0.85573]
[1727194106697,0.38252,2614.4,2614.2,0.85573]
[1727194106895,0.38253,2614.3,2614.2,0.85573]
[1727194107093,0.38252,2614.4,2614.3,0.38253]
[1727194107398,0.38252,2614.4,2614.2,0.85573]
[1727194108296,0.38252,2614.4,2614.3,0.38253]
[1727194108988,0.38252,2614.4,2614.2,0.85573]
[1727194109189,0.38252,2614.4,2614.3,0.38253]
[1727194109693,0.38252,2614.4,2614.2,0.4732]
[1727194109694,0.907,2614.7,2614.2,0.4732]
[1727194109896,0.38249,2614.6,2614.5,0.3825]
[1727194110293,4.20729,2614.6,2614.5,0.3825]
[1727194110496,0.38249,2614.6,2614.5,0.3825]
[1727194110692,0.907,2614.7,2614.2,0.4732]
[1727194110900,0.38249,2614.6,2614.5,0.38249]
[1727194111196,3.59026,2614.8,2614.7,0.38247]
[1727194111793,3.59026,2614.8,2614.5,0.4923]
[1727194111794,0.4671,2614.9,2614.8,0.38245]
[1727194112087,5.5978,2615.2,2614.5,0.4923]
[1727194112088,7.05623,2615.2,2614.5,0.4923]
[1727194112287,7.05623,2615.2,2614.8,0.38244]
[1727194112288,0.38244,2614.9,2614.8,0.38244]
[1727194112490,0.38243,2615.0,2614.9,0.38244]
[1727194112701,7.05623,2615.2,2614.7,6.55398]
[1727194112702,3.2078,2615.2,2614.7,6.55398]
[1727194113004,3.2078,2615.2,2615.1,0.38241]
[1727194113496,2.39,2615.4,2614.8,0.4542]
[1727194113497,0.38239,2615.3,2615.2,0.38239]
[1727194114501,2.77238,2615.4,2615.3,0.38238]
[1727194114697,0.38239,2615.3,2615.2,0.38239]
[1727194114997,2.39,2615.4,2614.8,1.41033]
[1727194115190,0.38238,2615.3,2614.8,1.41033]
[1727194115397,2.39,2615.4,2615.1,0.3824]
[1727194115597,0.38238,2615.3,2614.8,1.41033]
[1727194115803,0.3824,2615.2,2614.8,0.4542]
[1727194115999,2.77243,2615.0,2614.9,0.38243]
[1727194116298,2.77243,2615.0,2614.5,5.58653]
[1727194116299,0.38248,2614.7,2614.6,0.38248]
[1727194116692,2.39,2614.8,2614.5,0.4923]
[1727194116693,0.38248,2614.6,2614.5,0.4923]
[1727194117103,0.3825,2614.5,2614.4,0.4926]
[1727194117591,2.39,2614.6,2614.1,4.9147]
[1727194117592,0.38254,2614.3,2614.1,4.9147]
[1727194117791,0.38252,2614.4,2614.2,0.38253]
[1727194117999,0.38253,2614.3,2614.1,5.77625]
[1727194118199,0.38253,2614.3,2614.1,2.56845]
[1727194118395,2.77252,2614.4,2614.1,2.1859]
[1727194118699,2.77252,2614.4,2614.1,2.56845]
[1727194118898,2.77252,2614.4,2614.2,0.38254]
[1727194119105,2.77252,2614.4,2614.1,2.56845]
[1727194119611,0.38253,2614.3,2614.0,0.38256]
[1727194119798,2.77252,2614.4,2614.2,0.38254]
[1727194120396,2.77252,2614.4,2614.1,0.38255]
[1727194121095,0.38253,2614.3,2614.0,0.38256]
[1727194121708,0.38253,2614.3,2614.1,0.38255]
[1727194122002,2.39,2614.2,2613.8,4.1699]
[1727194122209,2.77258,2613.9,2613.8,4.1699]
[1727194122599,0.38263,2613.6,2613.5,3.2078]
[1727194122794,0.38264,2613.5,2613.4,0.4741]
[1727194123296,2.39,2613.7,2613.4,0.4741]
[1727194123493,2.39,2613.7,2613.4,0.85675]
[1727194123693,2.39,2613.9,2613.4,0.4741]
[1727194123908,0.3826,2613.8,2613.6,0.38262]
[1727194124098,0.3826,2613.8,2613.6,0.38263]
[1727194124295,2.39,2613.9,2613.5,0.87204]
[1727194124296,0.38262,2613.7,2613.5,0.87204]
[1727194124504,2.77259,2613.9,2613.7,0.38261]
[1727194124899,0.38256,2614.1,2613.9,0.38258]
[1727194125106,0.38256,2614.1,2614.0,0.929]
[1727194125604,2.77256,2614.1,2614.0,0.929]
[1727194125807,0.3826,2613.8,2613.6,0.929]
[1727194125999,0.3826,2613.8,2613.6,1.31163]
[1727194126000,2.77261,2613.8,2613.6,1.31163]
[1727194126309,0.38261,2613.7,2613.6,0.929]
[1727194127003,2.39,2613.8,2613.4,3.2078]
[1727194127004,0.38264,2613.6,2613.4,3.2078]
[1727194127201,2.39,2613.6,2613.5,0.38264]
[1727194127995,3.2078,2614.0,2613.5,3.8264]
[1727194128199,3.2078,2614.0,2613.9,0.38258]
[1727194129895,0.38254,2614.2,2614.0,0.38256]
[1727194130097,0.38254,2614.3,2614.1,0.38254]
[1727194130400,2.77252,2614.4,2614.2,0.38253]
[1727194130596,2.39,2614.4,2614.3,0.38253]
[1727194130804,0.38252,2614.4,2614.2,0.38253]
[1727194131303,0.38253,2614.3,2614.2,0.38253]
[1727194131509,6.5658,2614.5,2614.3,0.38252]
[1727194131701,6.9483,2614.5,2614.3,0.38251]
[1727194131917,3.358,2614.5,2614.4,0.38251]
[1727194132099,2.39,2614.6,2614.5,0.38249]
[1727194132294,3.2078,2614.8,2614.4,3.2078]
[1727194132295,0.38246,2614.8,2614.4,3.2078]
[1727194132514,6.3846767,2615.0,2614.5,1.3924]
[1727194132809,0.38247,2614.7,2614.5,1.77489]
[1727194133403,2.39,2614.9,2614.5,1.77489]
[1727194133706,0.38247,2614.7,2614.5,1.3924]
[1727194133900,0.38246,2614.8,2614.6,0.38248]
[1727194134501,0.38247,2614.7,2614.5,1.77489]
[1727194134702,0.38248,2614.6,2614.5,0.9142]
[1727194136016,0.38248,2614.6,2614.5,1.2967]
[1727194136312,0.38248,2614.6,2614.5,0.9142]
[1727194137003,0.38248,2614.6,2614.5,1.2967]
[1727194138114,0.38248,2614.6,2614.5,0.9142]
[1727194138610,0.38248,2614.6,2614.5,1.2967]
[1727194139516,2.77248,2614.7,2614.5,0.9142]
[1727194139810,2.77248,2614.7,2614.5,1.29669]
[1727194140399,0.95612,2614.9,2614.5,4.739]
[1727194140400,0.38244,2614.9,2614.5,4.739]
[1727194140710,0.38244,2614.9,2614.8,0.38245]
[1727194141718,4.9492967,2615.0,2614.9,0.38244]
[1727194142316,2.39,2615.4,2615.2,0.38238]
[1727194142317,0.38238,2615.4,2615.2,0.38238]
[1727194142611,4.1941,2615.8,2615.2,0.38238]
[1727194142612,0.4883,2615.7,2615.6,0.38234]
[1727194142815,0.95565,2616.2,2615.5,2.39]
[1727194142816,0.38229,2615.9,2615.5,2.39]
[1727194143109,0.4883,2616.1,2615.7,0.38231]
[1727194143308,0.38231,2615.8,2615.7,0.38231]
[1727194143813,0.4883,2616.1,2615.9,0.38228]
[1727194144007,0.4883,2616.1,2615.7,3.2078]
[1727194144207,0.38229,2616.0,2615.8,0.3823]
[1727194144403,0.3823,2615.9,2615.7,0.38231]
[1727194144608,0.38234,2615.6,2615.3,1.252]
[1727194144825,2.39,2615.8,2615.3,1.252]
[1727194144826,2.39,2615.5,2615.3,0.4578]
[1727194145027,0.38241,2615.2,2615.0,3.59022]
[1727194145218,0.38241,2615.1,2615.0,3.59022]
[1727194145427,0.38241,2615.1,2614.9,1.252]
[1727194145428,0.38242,2615.0,2614.9,1.63444]
[1727194145621,2.77242,2615.0,2614.9,1.252]
[1727194145928,0.38242,2615.0,2614.9,1.252]
[1727194146123,0.38245,2614.8,2614.7,4.6244]
[1727194146318,0.38245,2614.8,2614.7,3.6656]
[1727194147840,0.87014,2614.9,2614.7,3.6656]
[1727194148141,0.38245,2614.8,2614.7,3.2078]
[1727194149533,0.38245,2614.8,2614.4,1.3258]
[1727194149734,0.4877,2614.9,2614.4,0.9433]
[1727194149931,0.4877,2614.9,2614.4,0.4894]
[1727194149932,0.3825,2614.5,2614.4,0.4894]
[1727194150342,3.2078,2614.8,2614.1,0.85905]
[1727194150343,0.38251,2614.4,2614.1,0.85905]
[1727194150643,0.468,2614.4,2614.1,0.4765]
[1727194150838,0.38253,2614.3,2614.1,0.4765]
[1727194151234,0.468,2614.4,2614.1,0.4765]
[1727194151436,0.468,2614.4,2614.0,0.4482]
[1727194151642,0.38254,2614.2,2614.0,0.4482]
[1727194152035,0.468,2614.4,2613.9,0.97688902]
[1727194152240,0.468,2614.4,2614.0,0.38256]
[1727194152442,0.468,2614.4,2613.9,0.59430902]
[1727194152637,0.85051,2614.4,2614.1,0.38255]
[1727194153338,0.38253,2614.3,2614.0,0.38256]
[1727194153542,0.85052,2614.4,2614.1,0.38255]
[1727194153938,0.38253,2614.3,2614.0,0.38256]
[1727194154441,0.38253,2614.3,2613.9,0.59430902]
[1727194154442,0.38254,2614.2,2613.9,0.97687902]
[1727194154644,0.38253,2614.3,2614.0,0.38257]
[1727194155246,0.38255,2614.2,2613.9,0.97688902]
[1727194155747,0.38255,2614.2,2613.9,0.97687902]
[1727194156150,0.38255,2614.2,2614.0,0.38257]
[1727194156443,0.38253,2614.3,2614.0,0.38257]
[1727194156649,0.38253,2614.3,2613.8,0.9393]
[1727194157041,0.38253,2614.3,2614.0,0.38256]
[1727194157243,0.38253,2614.3,2614.1,0.38255]
[1727194157447,0.38255,2614.2,2614.0,0.38256]
[1727194157642,0.38254,2614.3,2614.0,0.38256]
[1727194159753,0.468,2614.4,2614.1,0.38255]
[1727194159939,0.38252,2614.4,2614.2,0.38254]
[1727194160742,0.4758,2614.8,2614.3,3.8248]
[1727194160958,0.85826,2614.8,2614.6,0.38248]
[1727194161161,0.38247,2614.7,2614.5,0.38249]
[1727194161742,0.4758,2614.8,2614.4,1.4486]
[1727194162048,0.38248,2614.7,2614.5,0.38249]
[1727194162451,0.38248,2614.6,2614.4,1.8311]
[1727194162658,0.38248,2614.7,2614.5,0.3825]
[1727194162849,0.38249,2614.6,2614.4,1.8311]
[1727194163155,0.9407,2614.8,2614.4,1.8311]
[1727194163343,0.3825,2614.5,2614.2,0.38253]
[1727194163549,0.95623,2614.6,2614.3,0.38253]
[1727194163853,0.95623,2614.6,2614.2,0.38253]
[1727194163854,0.38251,2614.4,2614.2,0.38253]
[1727194164043,0.38253,2614.3,2614.2,0.38253]
[1727194164247,0.38253,2614.3,2614.2,0.38254]
[1727194164550,0.95625,2614.5,2614.1,0.9499]
[1727194164858,0.38254,2614.2,2614.1,0.488]
[1727194165055,0.38254,2614.2,2614.0,3.59037]
[1727194165256,0.38255,2614.1,2614.0,3.59037]
[1727194165648,0.38255,2614.2,2614.0,0.38257]
[1727194166049,0.38255,2614.2,2613.9,5.47827]
[1727194166354,0.4692,2614.3,2613.7,3.2078]
[1727194166355,0.3826,2613.8,2613.7,3.2078]
[1727194166558,0.3826,2613.8,2613.2,0.99566364]
[1727194166559,0.38266,2613.5,2613.3,0.4818]
[1727194166861,0.38266,2613.5,2613.3,3.6896]
[1727194167050,0.38266,2613.5,2613.3,0.4818]
[1727194167358,0.9638,2613.7,2613.3,0.4818]
[1727194167359,0.38263,2613.6,2613.3,0.4818]
[1727194167659,1.34642,2613.7,2613.3,0.4818]
[1727194168156,0.9638,2613.7,2613.3,0.4818]
[1727194168358,3.59038,2614.0,2613.5,0.38263]
[1727194168656,0.38258,2614.0,2613.5,0.38263]
[1727194169355,0.38259,2613.9,2613.5,0.38263]
[1727194169551,4.381,2614.1,2613.3,0.4818]
[1727194169752,0.38263,2613.6,2613.3,0.4818]
[1727194169956,0.38263,2613.6,2613.3,3.6896]
[1727194170256,0.38262,2613.7,2613.3,0.4818]
[1727194171151,0.38263,2613.6,2613.3,0.4818]
[1727194171454,0.85933,2613.6,2613.3,0.4818]
[1727194171757,0.38264,2613.5,2613.3,0.4818]
[1727194172152,0.85934,2613.6,2613.3,0.4818]
[1727194172354,0.38265,2613.5,2613.3,0.4818]
[1727194172858,0.85933,2613.6,2613.3,0.4818]
[1727194173065,0.4767,2613.6,2613.3,0.4818]
[1727194173249,0.85933,2613.6,2613.3,0.4818]
[1727194173443,0.38265,2613.5,2613.2,0.4798]
[1727194173852,0.82915,2613.5,2613.2,0.4798]
[1727194174252,0.38266,2613.4,2613.2,0.4798]
[1727194174548,0.82915,2613.5,2613.2,0.4798]
[1727194174751,0.4465,2613.5,2613.2,0.86247]
[1727194174950,3.4172,2614.1,2613.2,0.4798]
[1727194174951,3.2078,2613.9,2613.2,0.4798]
[1727194175255,0.38261,2613.8,2613.2,0.4798]
[1727194175454,0.38261,2613.8,2613.4,0.38265]
[1727194175645,0.38262,2613.7,2613.5,0.4708]
[1727194176051,0.38261,2613.8,2613.5,0.4708]
[1727194176564,0.38261,2613.8,2613.6,0.449]
[1727194177359,1.36888,2614.0,2613.6,0.83162]
[1727194177652,0.38256,2614.1,2613.7,0.4562]
[1727194177847,0.38256,2614.1,2613.8,0.3826]
[1727194178053,0.4857,2614.2,2613.7,0.4562]
[1727194178249,0.38258,2614.0,2613.7,0.83881]
[1727194178455,0.4857,2614.2,2613.7,0.83881]
[1727194178661,0.38258,2613.9,2613.7,0.83881]
[1727194178852,0.38258,2614.0,2613.7,0.4562]
[1727194179051,0.38258,2614.0,2613.7,0.83881]
[1727194179553,0.3826,2613.8,2613.7,0.4562]
[1727194180151,0.38259,2613.9,2613.7,0.4562]
[1727194181153,1.40935,2614.0,2613.6,0.449]
[1727194181368,1.40935,2614.0,2613.6,0.83162]
[1727194181369,0.38261,2613.8,2613.6,0.83162]
[1727194181653,0.38261,2613.7,2613.6,0.449]
[1727194182048,0.38263,2613.6,2613.5,0.4708]
[1727194182965,0.38264,2613.5,2613.4,0.9346]
[1727194183151,0.9565,2613.8,2613.3,0.0021]
[1727194183152,0.38266,2613.4,2613.3,0.0021]
[1727194186953,7.55571,2613.4,2613.3,0.0021]
[1727194187569,8.97686,2613.4,2613.3,0.0021]
[1727194187761,14.97686,2613.4,2613.3,0.0021]
[1727194190567,0.3827,2613.1,2613.0,3.2078]
[1727194190760,2.7727,2613.1,2613.0,3.2078]
[1727194190960,0.8334,2613.1,2613.0,3.2078]
[1727194195365,0.38272,2613.0,2612.9,0.38273]
[1727194196964,0.8334,2613.1,2613.0,0.38272]
[1727194197163,0.38268,2613.3,2612.8,0.38275]
[1727194197365,0.089,2613.8,2613.7,0.38261]
[1727194197564,3.6756,2614.2,2614.0,0.38257]
[1727194197770,3.6756,2614.2,2613.6,3.2078]
[1727194197980,0.38256,2614.1,2613.8,0.38259]
[1727194198561,0.38258,2614.0,2613.8,0.38259]
[1727194199976,0.38261,2613.7,2613.5,0.38264]
[1727194200175,0.38264,2613.5,2613.4,1.4547]
[1727194200473,0.38264,2613.5,2613.4,0.9681]
[1727194201072,2.39,2613.7,2613.4,0.9681]